fUSD/lending_fUSD_20260605
["ID","MTS","AMOUNT","RATE_DAILY","PERIOD"]
[424103450,1780593032000,-183.218593,0.00017842,2]
[424103434,1780593032000,-151.0,0.00017739,2]
[424103407,1780593032000,-150.0,0.00017556,2]
[424103443,1780593032000,-3478.23,0.00017782,2]
[424103410,1780593032000,-150.0,0.00017556,2]
[424103411,1780593032000,-150.00000001,0.00017556,2]
[424103414,1780593032000,-150.0,0.00017583,2]
[424103420,1780593032000,-1000.0,0.00017646,2]
[424103417,1780593032000,-500.0,0.00017624,2]
[424103413,1780593032000,-150.0,0.00017556,2]
[424103412,1780593032000,-150.0,0.00017556,2]
[424103416,1780593032000,-150.0,0.00017619,2]
[424103418,1780593032000,-150.0,0.00017635,2]
[424103419,1780593032000,-150.0,0.00017637,2]
[424103415,1780593032000,-150.0,0.00017609,2]
[424103409,1780593032000,-150.0,0.00017556,2]
[424103433,1780593032000,-151.0,0.00017739,2]
[424103421,1780593032000,-2000.0,0.00017646,2]
[424103428,1780593032000,-150.0,0.00017714,2]
[424103429,1780593032000,-150.0,0.00017719,2]
[424103427,1780593032000,-150.0,0.00017699,2]
[424103422,1780593032000,-305.24958109,0.00017652,2]
[424103430,1780593032000,-150.0,0.00017719,2]
[424103444,1780593032000,-150.0,0.00017793,2]
[424103425,1780593032000,-167.29277881,0.00017692,2]
[424103426,1780593032000,-150.0,0.00017695,2]
[424103431,1780593032000,-151.0,0.00017739,2]
[424103423,1780593032000,-150.0,0.00017662,2]
[424103424,1780593032000,-150.0,0.00017688,2]
[424103505,1780593033000,-150.0,0.00018294,2]
[424103506,1780593033000,-150.0,0.00018321,2]
[424103503,1780593033000,-150.0,0.00018288,2]
[424103499,1780593033000,-150.0,0.00018215,2]
[424103496,1780593033000,-150.0,0.00018206,2]
[424103498,1780593033000,-150.0,0.00018206,2]
[424103500,1780593033000,-150.0,0.00018242,2]
[424103495,1780593033000,-150.0,0.00018189,2]
[424103508,1780593033000,-281.735805,0.00018352,2]
[424103501,1780593033000,-150.0,0.00018253,2]
[424103497,1780593033000,-150.0,0.00018206,2]
[424103510,1780593033000,-150.0,0.00018369,2]
[424103528,1780593033000,-151.0,0.00018541,2]
[424103507,1780593033000,-150.0,0.00018347,2]
[424103504,1780593033000,-150.0,0.00018288,2]
[424103514,1780593033000,-150.0,0.00018426,2]
[424103515,1780593033000,-150.0,0.0001845,2]
[424103509,1780593033000,-150.0,0.00018369,2]
[424103512,1780593033000,-150.0,0.00018392,2]
[424103513,1780593033000,-150.0,0.000184,2]
[424103517,1780593033000,-150.0,0.00018479,2]
[424103527,1780593033000,-456.0,0.00018541,2]
[424103518,1780593033000,-150.0,0.00018505,2]
[424103516,1780593033000,-150.0,0.00018452,2]
[424103502,1780593033000,-150.0,0.00018268,2]
[424103511,1780593033000,-150.0,0.00018373,2]
[424103493,1780593033000,-168.931839,0.0001817,2]
[424103468,1780593033000,-150.0,0.00018044,2]
[424103492,1780593033000,-150.0,0.00018162,2]
[424103520,1780593033000,-150.0,0.00018532,2]
[424103467,1780593033000,-150.0,0.00018044,2]
[424103465,1780593033000,-150.0,0.00018031,2]
[424103466,1780593033000,-150.0,0.00018044,2]
[424103472,1780593033000,-150.0,0.00018114,2]
[424103470,1780593033000,-150.0,0.00018083,2]
[424103469,1780593033000,-150.0,0.00018057,2]
[424103476,1780593033000,-151.0,0.00018143,2]
[424103474,1780593033000,-150.0,0.00018136,2]
[424103473,1780593033000,-150.0,0.00018125,2]
[424103477,1780593033000,-151.0,0.00018143,2]
[424103475,1780593033000,-150.0,0.00018143,2]
[424103494,1780593033000,-260.597634,0.0001817,2]
[424103479,1780593033000,-61.81967881,0.00018144,2]
[424103481,1780593033000,-151.0,0.00018144,2]
[424103480,1780593033000,-152.0,0.00018144,2]
[424103478,1780593033000,-88.18032119,0.00018144,2]
[424103482,1780593033000,-151.0,0.00018144,2]
[424103483,1780593033000,-150.0,0.00018144,2]
[424103487,1780593033000,-453.0,0.00018144,2]
[424103486,1780593033000,-151.0,0.00018144,2]
[424103485,1780593033000,-448.0,0.00018144,2]
[424103484,1780593033000,-151.0,0.00018144,2]
[424103488,1780593033000,-392.53198608,0.00018144,2]
[424103491,1780593033000,-445.0,0.0001815,2]
[424103490,1780593033000,-151.0,0.00018144,2]
[424103489,1780593033000,-152.0,0.00018144,2]
[424103525,1780593033000,-153.0,0.00018541,2]
[424103471,1780593033000,-150.0,0.0001811,2]
[424103524,1780593033000,-150.0,0.00018532,2]
[424103558,1780593033000,-150.0,0.00018769,2]
[424103563,1780593033000,-151.0,0.00018787,2]
[424103560,1780593033000,-150.0,0.00018775,2]
[424103559,1780593033000,-151.0,0.00018775,2]
[424103564,1780593033000,-150.0,0.00018795,2]
[424103562,1780593033000,-151.0,0.00018787,2]
[424103561,1780593033000,-150.0,0.00018775,2]
[424103556,1780593033000,-250.19,0.0001872,2]
[424103567,1780593033000,-150.0,0.0001881,2]
[424103566,1780593033000,-482.40471175,0.0001881,2]
[424103576,1780593033000,-150.0,0.00018857,2]
[424103575,1780593033000,-150.0,0.00018857,2]
[424103555,1780593033000,-150.0,0.00018716,2]
[424103565,1780593033000,-1000.0,0.000188,6]
[424103570,1780593033000,-151.0,0.0001881,2]
[424103572,1780593033000,-150.0,0.0001881,2]
[424103568,1780593033000,-151.0,0.0001881,2]
[424103574,1780593033000,-150.0,0.00018848,2]
[424103569,1780593033000,-151.0,0.0001881,2]
[424103573,1780593033000,-150.0,0.00018821,2]
[424103578,1780593033000,-150.0,0.00018874,2]
[424103577,1780593033000,-150.0,0.00018857,2]
[424103579,1780593033000,-1600.0,0.000189,6]
[424103580,1780593033000,-150.0,0.00018901,2]
[424103581,1780593033000,-215.73365239,0.00018916,2]
[424103521,1780593033000,-150.0,0.00018532,2]
[424103571,1780593033000,-152.0,0.0001881,2]
[424103554,1780593033000,-500.0,0.000187,6]
[424103557,1780593033000,-150.0,0.00018742,2]
[424103550,1780593033000,-2351.0,0.0001869,2]
[424103519,1780593033000,-150.0,0.00018532,2]
[424103523,1780593033000,-150.0,0.00018532,2]
[424103522,1780593033000,-150.0,0.00018532,2]
[424103526,1780593033000,-151.0,0.00018541,2]
[424103553,1780593033000,-380.58,0.00018697,2]
[424103529,1780593033000,-450.0,0.00018541,2]
[424103532,1780593033000,-453.0,0.00018541,2]
[424103538,1780593033000,-458.0,0.00018571,2]
[424103540,1780593033000,-150.0,0.00018584,2]
[424103530,1780593033000,-447.0,0.00018541,2]
[424103537,1780593033000,-150.0,0.00018558,2]
[424103533,1780593033000,-151.0,0.00018541,2]
[424103534,1780593033000,-456.0,0.00018541,2]
[424103539,1780593033000,-444.0,0.00018571,2]
[424103531,1780593033000,-459.0,0.00018541,2]
[424103535,1780593033000,-452.0,0.00018554,2]
[424103536,1780593033000,-457.0,0.00018554,2]
[424103546,1780593033000,-150.0,0.00018663,2]
[424103549,1780593033000,-150.0,0.0001869,2]
[424103548,1780593033000,-500.0,0.00018675,2]
[424103545,1780593033000,-150.0,0.00018637,2]
[424103544,1780593033000,-150.0,0.00018613,2]
[424103547,1780593033000,-150.0,0.00018671,2]
[424103551,1780593033000,-150.0,0.00018694,2]
[424103541,1780593033000,-150.0,0.00018611,2]
[424103552,1780593033000,-150.0,0.00018694,2]
[424103542,1780593033000,-446.0,0.00018613,2]
[424103543,1780593033000,-442.0,0.00018613,2]
[424103599,1780593034000,-150.0,0.00019111,2]
[424103592,1780593034000,-160.0,0.00019032,2]
[424103598,1780593034000,-121.49651976,0.000191,2]
[424103596,1780593034000,-150.0,0.00019089,2]
[424103597,1780593034000,-28.50348024,0.000191,2]
[424103593,1780593034000,-150.0,0.00019032,2]
[424103595,1780593034000,-150.0,0.00019085,2]
[424103594,1780593034000,-150.0,0.00019059,2]
[424103591,1780593034000,-150.0,0.00019019,2]
[424103586,1780593034000,-150.0,0.00018953,2]
[424103589,1780593034000,-150.0,0.00019019,2]
[424103588,1780593034000,-150.0,0.00019006,2]
[424103582,1780593034000,-927.03,0.00018921,2]
[424103587,1780593034000,-150.0,0.0001898,2]
[424103584,1780593034000,-150.0,0.00018938,2]
[424103585,1780593034000,-150.0,0.0001895,2]
[424103583,1780593034000,-150.0,0.00018927,2]
[424103600,1780593034000,-2018.80050238,0.00019121,2]
[424103590,1780593034000,-150.0,0.00019019,2]
[424103603,1780593034000,-150.0,0.00019182,4]
[424103617,1780593034000,-2916.87131861,0.00019325,2]
[424103604,1780593034000,-150.0,0.00019182,4]
[424103620,1780593034000,-150.0,0.00019344,4]
[424103621,1780593034000,-150.0,0.00019344,4]
[424103622,1780593034000,-11365.53390646,0.00019346,2]
[424103618,1780593034000,-6278.82574525,0.00019325,2]
[424103619,1780593034000,-592.42969906,0.0001934,2]
[424103601,1780593034000,-150.0,0.00019138,2]
[424103616,1780593034000,-11931.92625536,0.00019325,2]
[424103614,1780593034000,-456.93554087,0.00019325,2]
[424103615,1780593034000,-11964.46810936,0.00019325,2]
[424103623,1780593034000,-559.83788908,0.00019346,2]
[424103612,1780593034000,-150.0,0.00019296,4]
[424103611,1780593034000,-150.0,0.0001927,4]
[424103610,1780593034000,-150.0,0.00019263,4]
[424103609,1780593034000,-150.0,0.00019263,4]
[424103608,1780593034000,-150.0,0.00019243,4]
[424103607,1780593034000,-150.0,0.00019228,4]
[424103605,1780593034000,-150.0,0.00019191,4]
[424103606,1780593034000,-150.0,0.00019217,4]
[424103602,1780593034000,-150.0,0.00019164,2]
[424103613,1780593034000,-150.0,0.00019322,4]
[424103635,1780593038000,-500.0,0.00015461,2]
[424103641,1780593038000,-500.0,0.00015461,2]
[424103651,1780593038000,-151.0,0.00019346,2]
[424103643,1780593038000,-500.0,0.00015461,2]
[424103650,1780593038000,-6278.82574516,0.00019346,2]
[424103644,1780593038000,-500.0,0.00015461,2]
[424103642,1780593038000,-500.0,0.00015461,2]
[424103640,1780593038000,-500.0,0.00015461,2]
[424103648,1780593038000,-206.4831846,0.00015462,2]
[424103636,1780593038000,-500.0,0.00015461,2]
[424103652,1780593038000,-150.0,0.00019349,4]
[424103639,1780593038000,-500.0,0.00015461,2]
[424103632,1780593038000,-500.0,0.00015461,2]
[424103633,1780593038000,-500.0,0.00015461,2]
[424103634,1780593038000,-500.0,0.00015461,2]
[424103637,1780593038000,-500.0,0.00015461,2]
[424103649,1780593038000,-2923.42577841,0.00019346,2]
[424103638,1780593038000,-500.0,0.00015461,2]
[424103628,1780593038000,-500.0,0.00015461,2]
[424103627,1780593038000,-500.0,0.00015461,2]
[424103630,1780593038000,-500.0,0.00015461,2]
[424103629,1780593038000,-500.0,0.00015461,2]
[424103625,1780593038000,-500.0,0.00015461,2]
[424103624,1780593038000,-548.74165168,0.00015461,2]
[424103631,1780593038000,-626.70190374,0.00015461,2]
[424103645,1780593038000,-500.0,0.00015461,2]
[424103626,1780593038000,-500.0,0.00015461,2]
[424103647,1780593038000,-500.0,0.00015462,2]
[424103646,1780593038000,-500.0,0.00015462,2]
[424103678,1780593038000,-14848.79757395,0.00019469,2]
[424103677,1780593038000,-150.0,0.00019454,4]
[424103675,1780593038000,-14848.79757395,0.00019448,2]
[424103673,1780593038000,-6278.82574516,0.00019428,2]
[424103672,1780593038000,-14848.79757395,0.00019428,2]
[424103671,1780593038000,-150.0,0.00019428,4]
[424103670,1780593038000,-150.0,0.00019426,4]
[424103669,1780593038000,-1314605.75459845,0.0001941,2]
[424103676,1780593038000,-6278.82574516,0.00019448,2]
[424103666,1780593038000,-4199.72873199,0.0001941,2]
[424103668,1780593038000,-18681.66035348,0.0001941,2]
[424103674,1780593038000,-202018.73379497,0.0001943,2]
[424103664,1780593038000,-160752.86241622,0.0001941,2]
[424103655,1780593038000,-150.0,0.00019368,4]
[424103665,1780593038000,-1759.99389986,0.0001941,2]
[424103656,1780593038000,-150.0,0.00019375,4]
[424103653,1780593038000,-14848.79757395,0.00019366,2]
[424103658,1780593038000,-6278.82574516,0.00019387,2]
[424103654,1780593038000,-6278.82574516,0.00019366,2]
[424103663,1780593038000,-1101.47586015,0.00019409,5]
[424103661,1780593038000,-14848.79757395,0.00019407,2]
[424103662,1780593038000,-6278.82574516,0.00019407,2]
[424103659,1780593038000,-927.03,0.00019394,2]
[424103660,1780593038000,-150.0,0.00019401,4]
[424103657,1780593038000,-14848.79757395,0.00019387,2]
[424103688,1780593039000,-150.0,0.00019507,4]
[424103709,1780593039000,-500.0,0.00019509,2]
[424103707,1780593039000,-500.0,0.00019509,2]
[424103705,1780593039000,-500.0,0.00019509,2]
[424103703,1780593039000,-500.0,0.00019509,2]
[424103692,1780593039000,-250.0,0.00019509,2]
[424103701,1780593039000,-500.0,0.00019509,2]
[424103687,1780593039000,-150.59932888,0.00019507,4]
[424103683,1780593039000,-150.0,0.00019507,4]
[424103684,1780593039000,-150.0,0.00019507,4]
[424103686,1780593039000,-150.0,0.00019507,4]
[424103690,1780593039000,-166.58813878,0.00019507,4]
[424103679,1780593039000,-6278.82574516,0.00019469,2]
[424103682,1780593039000,-6278.82574516,0.00019489,2]
[424103681,1780593039000,-14848.79757395,0.00019489,2]
[424103680,1780593039000,-150.0,0.0001948,4]
[424103697,1780593039000,-500.0,0.00019509,2]
[424103685,1780593039000,-150.0,0.00019507,4]
[424103693,1780593039000,-918.26185472,0.00019509,2]
[424103695,1780593039000,-284.66230357,0.00019509,2]
[424103712,1780593039000,-500.0,0.00019509,2]
[424103714,1780593039000,-507.74537308,0.00019509,2]
[424103745,1780593039000,-14848.79757395,0.0001951,2]
[424103743,1780593039000,-504.70461463,0.00019509,2]
[424103747,1780593039000,-6278.82574516,0.0001951,2]
[424103748,1780593039000,-2233757.52930166,0.0001951,2]
[424103734,1780593039000,-479.57886491,0.00019509,2]
[424103735,1780593039000,-500.0,0.00019509,2]
[424103728,1780593039000,-500.0,0.00019509,2]
[424103730,1780593039000,-500.0,0.00019509,2]
[424103741,1780593039000,-300.54314303,0.00019509,2]
[424103739,1780593039000,-500.0,0.00019509,2]
[424103737,1780593039000,-500.0,0.00019509,2]
[424103722,1780593039000,-500.0,0.00019509,2]
[424103724,1780593039000,-500.0,0.00019509,2]
[424103718,1780593039000,-543.22734618,0.00019509,2]
[424103726,1780593039000,-500.0,0.00019509,2]
[424103720,1780593039000,-150.0,0.00019509,2]
[424103716,1780593039000,-500.0,0.00019509,2]
[424103732,1780593039000,-500.0,0.00019509,2]
[424103699,1780593039000,-500.0,0.00019509,2]
[424103946,1780593040000,-4416.33433234,0.0001951,2]
[424103910,1780593040000,-151.0,0.0001951,2]
[424103912,1780593040000,-1793.72444727,0.0001951,2]
[424103844,1780593040000,-6202.79460925,0.0001951,2]
[424103842,1780593040000,-167.301535,0.00018029,2]
[424104096,1780593043000,-202.22446417,0.0001951,2]
[424104099,1780593043000,-726.1882972,0.0001951,2]
[424104097,1780593043000,-287.30469767,0.0001951,2]
[424104098,1780593043000,-7628.2236292,0.0001951,2]
[424104102,1780593046000,-2594.63722998,0.0001951,2]
[424104105,1780593269000,-272.37484222,0.00015362,2]
[424104106,1780593286000,-143.73175778,0.00015362,2]
[424104107,1780593339000,-150.0,0.00015624,2]
[424104108,1780593392000,-151.42,0.00015484,2]
[424104109,1780593408000,-324.8,0.00015484,2]
[424104110,1780593423000,-324.8,0.00015484,2]
[424104111,1780593437000,-200.0,0.00015484,2]
[424104112,1780593452000,-200.0,0.00015561,2]
[424104113,1780593467000,-151.42,0.00015483,2]
[424104114,1780593481000,-40.920925,0.00015483,2]
[424104115,1780593495000,829.3174834,0.0003013,120]
[424104116,1780593503000,432935.68739628,0.00015,2]
[424104118,1780593682000,45226.34895074,0.00015,2]
[424104119,1780593870000,187.59,0.00028767,120]
[424104120,1780594040000,-151.42,0.00015357,2]
[424104121,1780594054000,-151.42,0.00015357,2]
[424104122,1780594070000,-151.42,0.00015357,2]
[424104123,1780594085000,-151.42,0.00015357,2]
[424104124,1780594100000,-161.3,0.00015357,2]
[424104125,1780594114000,-161.3,0.00015357,2]
[424104126,1780594129000,-195.52,0.00015357,2]
[424104127,1780594143000,-195.52,0.00015357,2]
[424104128,1780594144000,2000.0,0.00030135,120]
[424104129,1780594157000,-513.75265628,0.00015357,2]
[424104130,1780594171000,-513.75265628,0.00015258,2]
[424104131,1780594209000,203.96211632,0.00015,2]
[424104132,1780594212000,3182.0,0.00014425,2]
[424104133,1780594218000,864.929,0.00014984,2]
[424104144,1780594231000,-500.0,0.00015356,2]
[424104141,1780594231000,-290.24686,0.00015356,2]
[424104143,1780594231000,-500.0,0.00015356,2]
[424104140,1780594231000,-500.0,0.00015356,2]
[424104139,1780594231000,-1200.0,0.00015356,2]
[424104142,1780594231000,-209.75314,0.00015356,2]
[424104146,1780594231000,-500.0,0.00015356,2]
[424104147,1780594231000,-507.63161687,0.00015356,2]
[424104145,1780594231000,-384.52653459,0.00015356,2]
[424104194,1780594232000,-507.63161687,0.00015356,2]
[424104192,1780594232000,-507.63161687,0.00015356,2]
[424104191,1780594232000,-507.63161687,0.00015356,2]
[424104189,1780594232000,-507.63161687,0.00015356,2]
[424104177,1780594232000,-507.63161687,0.00015356,2]
[424104180,1780594232000,-507.63161687,0.00015356,2]
[424104179,1780594232000,-507.63161687,0.00015356,2]
[424104178,1780594232000,-507.63161687,0.00015356,2]
[424104174,1780594232000,-507.63161687,0.00015356,2]
[424104195,1780594232000,-507.63161687,0.00015356,2]
[424104176,1780594232000,-507.63161687,0.00015356,2]
[424104196,1780594232000,-507.63161687,0.00015356,2]
[424104203,1780594232000,-507.63161687,0.00015356,2]
[424104193,1780594232000,-507.63161687,0.00015356,2]
[424104199,1780594232000,-507.63161687,0.00015356,2]
[424104200,1780594232000,-507.63161687,0.00015356,2]
[424104197,1780594232000,-507.63161687,0.00015356,2]
[424104201,1780594232000,-507.63161687,0.00015356,2]
[424104172,1780594232000,-507.63161687,0.00015356,2]
[424104198,1780594232000,-507.63161687,0.00015356,2]
[424104205,1780594232000,-507.63161687,0.00015356,2]
[424104204,1780594232000,-507.63161687,0.00015356,2]
[424104217,1780594232000,-501.0815315,0.00015356,2]
[424104206,1780594232000,-507.63161687,0.00015356,2]
[424104215,1780594232000,-501.0815315,0.00015356,2]
[424104202,1780594232000,-507.63161687,0.00015356,2]
[424104188,1780594232000,-507.63161687,0.00015356,2]
[424104166,1780594232000,-507.63161687,0.00015356,2]
[424104184,1780594232000,-507.63161687,0.00015356,2]
[424104155,1780594232000,-507.63161687,0.00015356,2]
[424104153,1780594232000,-507.63161687,0.00015356,2]
[424104148,1780594232000,-507.63161687,0.00015356,2]
[424104149,1780594232000,-507.63161687,0.00015356,2]
[424104152,1780594232000,-507.63161687,0.00015356,2]
[424104154,1780594232000,-507.63161687,0.00015356,2]
[424104151,1780594232000,-507.63161687,0.00015356,2]
[424104158,1780594232000,-507.63161687,0.00015356,2]
[424104150,1780594232000,-507.63161687,0.00015356,2]
[424104157,1780594232000,-507.63161687,0.00015356,2]
[424104156,1780594232000,-507.63161687,0.00015356,2]
[424104164,1780594232000,-507.63161687,0.00015356,2]
[424104185,1780594232000,-507.63161687,0.00015356,2]
[424104161,1780594232000,-507.63161687,0.00015356,2]
[424104162,1780594232000,-507.63161687,0.00015356,2]
[424104163,1780594232000,-507.63161687,0.00015356,2]
[424104169,1780594232000,-507.63161687,0.00015356,2]
[424104165,1780594232000,-507.63161687,0.00015356,2]
[424104168,1780594232000,-507.63161687,0.00015356,2]
[424104167,1780594232000,-507.63161687,0.00015356,2]
[424104208,1780594232000,-507.63161687,0.00015356,2]
[424104170,1780594232000,-507.63161687,0.00015356,2]
[424104182,1780594232000,-507.63161687,0.00015356,2]
[424104187,1780594232000,-507.63161687,0.00015356,2]
[424104186,1780594232000,-507.63161687,0.00015356,2]
[424104183,1780594232000,-507.63161687,0.00015356,2]
[424104159,1780594232000,-507.63161687,0.00015356,2]
[424104216,1780594232000,-501.0815315,0.00015356,2]
[424104160,1780594232000,-507.63161687,0.00015356,2]
[424104209,1780594232000,-507.63161687,0.00015356,2]
[424104242,1780594232000,-500.0,0.00015356,2]
[424104243,1780594232000,-501.0815315,0.00015356,2]
[424104246,1780594232000,-214.48670305,0.00015356,2]
[424104244,1780594232000,-500.0,0.00015356,2]
[424104248,1780594232000,-250.0,0.00015407,2]
[424104249,1780594232000,-150.0,0.00015452,2]
[424104251,1780594232000,-250.0,0.00015538,2]
[424104252,1780594232000,-341.05627566,0.00015541,2]
[424104250,1780594232000,-300.0,0.00015455,2]
[424104255,1780594232000,-150.0,0.00015758,2]
[424104256,1780594232000,-150.0,0.00015911,2]
[424104254,1780594232000,-152.0,0.00015663,2]
[424104245,1780594232000,-493.29972906,0.00015356,2]
[424104257,1780594232000,-166.66,0.00016001,2]
[424104258,1780594232000,-150.0,0.00016064,2]
[424104259,1780594232000,-203.96211632,0.00016155,2]
[424104260,1780594232000,-150.0,0.00016305,2]
[424104261,1780594232000,-272.38,0.0001631,2]
[424104262,1780594232000,-166.66,0.00016337,2]
[424104263,1780594232000,-200.0,0.00016458,2]
[424104264,1780594232000,-2000.0,0.00016576,2]
[424104267,1780594232000,-1680.0,0.00016885,2]
[424104268,1780594232000,-300.0,0.00016893,2]
[424104266,1780594232000,-164.89,0.00016843,2]
[424104265,1780594232000,-166.66,0.00016674,2]
[424104207,1780594232000,-507.63161687,0.00015356,2]
[424104253,1780594232000,-150.0,0.00015605,2]
[424104240,1780594232000,-501.0815315,0.00015356,2]
[424104247,1780594232000,-8963.82264561,0.00015357,2]
[424104239,1780594232000,-501.0815315,0.00015356,2]
[424104210,1780594232000,-507.63161687,0.00015356,2]
[424104213,1780594232000,-501.0815315,0.00015356,2]
[424104211,1780594232000,-507.63161687,0.00015356,2]
[424104214,1780594232000,-501.0815315,0.00015356,2]
[424104212,1780594232000,-237.98014266,0.00015356,2]
[424104220,1780594232000,-501.0815315,0.00015356,2]
[424104218,1780594232000,-501.0815315,0.00015356,2]
[424104222,1780594232000,-501.0815315,0.00015356,2]
[424104221,1780594232000,-501.0815315,0.00015356,2]
[424104219,1780594232000,-501.0815315,0.00015356,2]
[424104225,1780594232000,-501.0815315,0.00015356,2]
[424104228,1780594232000,-501.0815315,0.00015356,2]
[424104227,1780594232000,-501.0815315,0.00015356,2]
[424104241,1780594232000,-501.0815315,0.00015356,2]
[424104224,1780594232000,-501.0815315,0.00015356,2]
[424104229,1780594232000,-501.0815315,0.00015356,2]
[424104238,1780594232000,-501.0815315,0.00015356,2]
[424104237,1780594232000,-501.0815315,0.00015356,2]
[424104236,1780594232000,-500.0,0.00015356,2]
[424104232,1780594232000,-501.0815315,0.00015356,2]
[424104235,1780594232000,-501.0815315,0.00015356,2]
[424104233,1780594232000,-501.0815315,0.00015356,2]
[424104231,1780594232000,-501.0815315,0.00015356,2]
[424104230,1780594232000,-501.0815315,0.00015356,2]
[424104226,1780594232000,-501.0815315,0.00015356,2]
[424104223,1780594232000,-501.0815315,0.00015356,2]
[424104234,1780594232000,-501.0815315,0.00015356,2]
[424104292,1780594233000,-787.08158976,0.00018534,2]
[424104288,1780594233000,-151.0,0.00018501,2]
[424104285,1780594233000,-290.35,0.00018391,2]
[424104290,1780594233000,-10468.90959569,0.00018514,2]
[424104293,1780594233000,-2198.0,0.00018567,2]
[424104300,1780594233000,-201.17996536,0.00018593,2]
[424104291,1780594233000,-304.62369392,0.00018514,2]
[424104295,1780594233000,-500.0,0.00018593,2]
[424104294,1780594233000,-2181.18,0.00018575,14]
[424104298,1780594233000,-500.0,0.00018593,2]
[424104284,1780594233000,-214.86889038,0.00018,2]
[424104299,1780594233000,-500.0,0.00018593,2]
[424104297,1780594233000,-500.0,0.00018593,2]
[424104296,1780594233000,-500.0,0.00018593,2]
[424104287,1780594233000,-151.0,0.00018501,2]
[424104282,1780594233000,-166.66,0.00017685,2]
[424104283,1780594233000,-500.0,0.0001789,2]
[424104269,1780594233000,-250.0,0.00016893,2]
[424104271,1780594233000,-300.0,0.00017003,2]
[424104270,1780594233000,-600.0,0.00017003,2]
[424104273,1780594233000,-166.66,0.00017011,2]
[424104302,1780594233000,-500.0,0.00018593,2]
[424104277,1780594233000,-1000.0,0.0001739,2]
[424104286,1780594233000,-203.96211632,0.00018465,2]
[424104278,1780594233000,-2185.46,0.00017572,2]
[424104275,1780594233000,-181.0,0.00017318,2]
[424104276,1780594233000,-166.66,0.00017348,2]
[424104280,1780594233000,-6689.34,0.00017572,2]
[424104289,1780594233000,-791.2523002,0.00018514,2]
[424104279,1780594233000,-1150.97,0.00017572,2]
[424104281,1780594233000,-166.87,0.00017644,2]
[424104274,1780594233000,-203.96211632,0.0001731,2]
[424104272,1780594233000,-150.0,0.00017011,2]
[424104301,1780594233000,-500.0,0.00018593,2]
[424104303,1780594233000,-500.0,0.00018593,2]
[424104333,1780594233000,-500.0,0.00019429,2]
[424104309,1780594233000,-500.0,0.00018593,2]
[424104334,1780594233000,-350.0,0.00019505,2]
[424104331,1780594233000,-500.0,0.00019409,2]
[424104332,1780594233000,-500.0,0.00019409,2]
[424104327,1780594233000,-500.0,0.00019409,2]
[424104329,1780594233000,-500.0,0.00019409,2]
[424104326,1780594233000,-500.0,0.00019409,2]
[424104325,1780594233000,-512.101,0.00019409,2]
[424104321,1780594233000,-4698.608,0.00019346,2]
[424104328,1780594233000,-500.0,0.00019409,2]
[424104324,1780594233000,-500.0,0.00019409,2]
[424104323,1780594233000,-16288.0108245,0.00019371,2]
[424104330,1780594233000,-500.0,0.00019409,2]
[424104322,1780594233000,-289.698,0.00019346,2]
[424104335,1780594233000,-109185.712869,0.00019509,2]
[424104317,1780594233000,-800.0,0.000189,6]
[424104314,1780594233000,-215.73365239,0.00018708,2]
[424104304,1780594233000,-500.0,0.00018593,2]